[Event "Early-Titled-Tuesday-Blitz-April-23-2024"]
[Site "Chess.com"]
[Date "2024.04.23"]
[Round "4"]
[White "zurzan"]
[Black "Nf3c5"]
[Result "0-1"]
[WhiteElo "2124"]
[BlackElo "2658"]
[TimeControl "180+1"]
[EndTime "8:40:52 PDT"]
[Termination "Nf3c5 won by checkmate"]

1. c4 {[%clk 0:03:00.9]} 1... Nf6 {[%clk 0:02:56.9]} 2. g3 {[%clk 0:03:01.2]}
2... g6 {[%clk 0:02:57.4]} 3. Bg2 {[%clk 0:03:01.8]} 3... Bg7 {[%clk 0:02:57.9]}
4. Nf3 {[%clk 0:03:02.3]} 4... O-O {[%clk 0:02:58.4]} 5. O-O {[%clk 0:03:03.1]}
5... d6 {[%clk 0:02:57.9]} 6. Nc3 {[%clk 0:03:04]} 6... e5 {[%clk 0:02:53.3]} 7.
d3 {[%clk 0:03:03.9]} 7... h6 {[%clk 0:02:50.9]} 8. Rb1 {[%clk 0:03:03.9]} 8...
a5 {[%clk 0:02:50.1]} 9. b3 {[%clk 0:03:01.1]} 9... Nc6 {[%clk 0:02:48.6]} 10.
h3 {[%clk 0:03:01]} 10... Be6 {[%clk 0:02:48.9]} 11. e3 {[%clk 0:03:00.1]} 11...
Qd7 {[%clk 0:02:46.1]} 12. Kh2 {[%clk 0:02:59.2]} 12... d5 {[%clk 0:02:45.4]}
13. cxd5 {[%clk 0:02:49.9]} 13... Nxd5 {[%clk 0:02:46.3]} 14. Nxd5 {[%clk
0:02:47.6]} 14... Bxd5 {[%clk 0:02:45.6]} 15. e4 {[%clk 0:02:41.3]} 15... Be6
{[%clk 0:02:44.7]} 16. Qe2 {[%clk 0:02:41]} 16... Rad8 {[%clk 0:02:40.9]} 17.
Rd1 {[%clk 0:02:39]} 17... Qe7 {[%clk 0:01:22.1]} 18. Bb2 {[%clk 0:02:33]} 18...
Rfe8 {[%clk 0:01:21.2]} 19. Rbc1 {[%clk 0:02:06]} 19... a4 {[%clk 0:01:13.7]}
20. bxa4 {[%clk 0:01:56.5]} 20... Bxa2 {[%clk 0:01:13.6]} 21. Ra1 {[%clk
0:01:46]} 21... Bb3 {[%clk 0:01:13.3]} 22. Rd2 {[%clk 0:01:39.5]} 22... Qe6
{[%clk 0:01:04.9]} 23. a5 {[%clk 0:01:22.4]} 23... Rd7 {[%clk 0:01:03.5]} 24. a6
{[%clk 0:01:20.2]} 24... b6 {[%clk 0:00:59.1]} 25. h4 {[%clk 0:00:54]} 25... Qe7
{[%clk 0:00:48.9]} 26. Bh3 {[%clk 0:00:53.4]} 26... Be6 {[%clk 0:00:48.3]} 27.
Ba3 {[%clk 0:00:52.2]} 27... Qd8 {[%clk 0:00:48]} 28. Bxe6 {[%clk 0:00:50.6]}
28... Rxe6 {[%clk 0:00:48.9]} 29. Bb2 {[%clk 0:00:44.9]} 29... Re8 {[%clk
0:00:46.8]} 30. Bc3 {[%clk 0:00:41.7]} 30... Na7 {[%clk 0:00:44.2]} 31. Rad1
{[%clk 0:00:37.6]} 31... c5 {[%clk 0:00:44.3]} 32. Rb2 {[%clk 0:00:35.5]} 32...
b5 {[%clk 0:00:44.2]} 33. Rdb1 {[%clk 0:00:34.8]} 33... b4 {[%clk 0:00:44.4]}
34. Bxb4 {[%clk 0:00:34.1]} 34... cxb4 {[%clk 0:00:44.1]} 35. Rxb4 {[%clk
0:00:35]} 35... Nc6 {[%clk 0:00:39.2]} 36. Rb6 {[%clk 0:00:34.1]} 36... Rc7
{[%clk 0:00:38.2]} 37. Rb7 {[%clk 0:00:32.3]} 37... Qd7 {[%clk 0:00:36.8]} 38.
Rxc7 {[%clk 0:00:28]} 38... Qxc7 {[%clk 0:00:37.7]} 39. Rb7 {[%clk 0:00:18.2]}
39... Qa5 {[%clk 0:00:37.4]} 40. d4 {[%clk 0:00:16.5]} 40... Nxd4 {[%clk
0:00:26.5]} 41. Nxd4 {[%clk 0:00:16.6]} 41... exd4 {[%clk 0:00:27.4]} 42. Qf3
{[%clk 0:00:16.4]} 42... Rf8 {[%clk 0:00:26.2]} 43. a7 {[%clk 0:00:15.3]} 43...
Qa6 {[%clk 0:00:24.4]} 44. e5 {[%clk 0:00:15.3]} 44... Bxe5 {[%clk 0:00:24.5]}
45. Qd5 {[%clk 0:00:14.2]} 45... Bg7 {[%clk 0:00:18.1]} 46. Rb8 {[%clk
0:00:12.4]} 46... Qxa7 {[%clk 0:00:17.4]} 47. Rxf8+ {[%clk 0:00:12]} 47... Bxf8
{[%clk 0:00:18]} 48. Qd8 {[%clk 0:00:11.3]} 48... Qc5 {[%clk 0:00:16.9]} 49. Kg2
{[%clk 0:00:11.3]} 49... Qe5 {[%clk 0:00:16.7]} 50. g4 {[%clk 0:00:10.6]} 50...
Kg7 {[%clk 0:00:16.7]} 51. g5 {[%clk 0:00:10.2]} 51... hxg5 {[%clk 0:00:16.5]}
52. hxg5 {[%clk 0:00:10.5]} 52... Be7 {[%clk 0:00:17.1]} 53. Qd7 {[%clk
0:00:08.7]} 53... Bxg5 {[%clk 0:00:16.5]} 54. Kf1 {[%clk 0:00:09.3]} 54... Bf6
{[%clk 0:00:15.8]} 55. Qb5 {[%clk 0:00:08.3]} 55... Qe4 {[%clk 0:00:15.6]} 56.
Qc4 {[%clk 0:00:06.4]} 56... Qh1+ {[%clk 0:00:13.8]} 57. Ke2 {[%clk 0:00:06.2]}
57... Qe4+ {[%clk 0:00:14.7]} 58. Kf1 {[%clk 0:00:05.9]} 58... Qf5 {[%clk
0:00:15.2]} 59. Qe2 {[%clk 0:00:04.8]} 59... d3 {[%clk 0:00:15.2]} 60. Qd2
{[%clk 0:00:04.8]} 60... Bd4 {[%clk 0:00:15]} 61. Kg2 {[%clk 0:00:03.2]} 61...
Qe4+ {[%clk 0:00:15.3]} 62. Kf1 {[%clk 0:00:03.3]} 62... Qh1# {[%clk 0:00:13.2]}
0-1

[Event "Early-Titled-Tuesday-Blitz-April-23-2024"]
[Site "Chess.com"]
[Date "2024.04.23"]
[Round "4"]
[White "marcodobrikov"]
[Black "RamonManon0g"]
[Result "1-0"]
[WhiteElo "2681"]
[BlackElo "2458"]
[TimeControl "180+1"]
[EndTime "8:40:53 PDT"]
[Termination "marcodobrikov won by resignation"]

1. Nf3 {[%clk 0:03:00.9]} 1... Nf6 {[%clk 0:02:59.8]} 2. b3 {[%clk 0:02:59.1]}
2... g6 {[%clk 0:02:56.9]} 3. Bb2 {[%clk 0:03:00]} 3... Bg7 {[%clk 0:02:56.8]}
4. g4 {[%clk 0:02:58.5]} 4... d5 {[%clk 0:02:55.3]} 5. g5 {[%clk 0:02:58.2]}
5... Nh5 {[%clk 0:02:55.6]} 6. Bxg7 {[%clk 0:02:55.8]} 6... Nxg7 {[%clk
0:02:56.5]} 7. Nc3 {[%clk 0:02:50.5]} 7... d4 {[%clk 0:02:55.1]} 8. Ne4 {[%clk
0:02:50.2]} 8... O-O {[%clk 0:02:54.2]} 9. h4 {[%clk 0:02:49.9]} 9... Bg4 {[%clk
0:02:53.2]} 10. Bg2 {[%clk 0:02:49.9]} 10... Nc6 {[%clk 0:02:50.9]} 11. Qc1
{[%clk 0:02:37.3]} 11... Nh5 {[%clk 0:02:49.3]} 12. e3 {[%clk 0:02:34]} 12... d3
{[%clk 0:02:33.2]} 13. c3 {[%clk 0:02:24.6]} 13... f5 {[%clk 0:02:26.9]} 14. Nc5
{[%clk 0:02:11.6]} 14... f4 {[%clk 0:02:22]} 15. Nd4 {[%clk 0:01:55.1]} 15...
Nxd4 {[%clk 0:02:16.4]} 16. cxd4 {[%clk 0:01:54.5]} 16... fxe3 {[%clk
0:02:08.5]} 17. dxe3 {[%clk 0:01:54.4]} 17... e5 {[%clk 0:01:18.8]} 18. Qc4+
{[%clk 0:01:39.7]} 18... Kh8 {[%clk 0:01:18.8]} 19. Nxd3 {[%clk 0:01:05.8]}
19... exd4 {[%clk 0:01:10.6]} 20. Ne5 {[%clk 0:00:54.2]} 20... dxe3 {[%clk
0:01:04.8]} 21. fxe3 {[%clk 0:00:38.6]} 21... Qd6 {[%clk 0:00:53.9]} 22. Qd4
{[%clk 0:00:14.4]} 22... Qxd4 {[%clk 0:00:37.6]} 23. exd4 {[%clk 0:00:15.3]}
23... Rae8 {[%clk 0:00:21.1]} 24. Rf1 {[%clk 0:00:12.2]} 24... Bf5 {[%clk
0:00:16.2]} 25. Kd2 {[%clk 0:00:11.1]} 25... c5 {[%clk 0:00:16.3]} 26. Rae1
{[%clk 0:00:06.3]} 26... cxd4 {[%clk 0:00:16.4]} 27. Bxb7 {[%clk 0:00:06.2]}
27... Ng3 {[%clk 0:00:15.6]} 28. Rf3 {[%clk 0:00:05.2]} 28... Nh5 {[%clk
0:00:13.9]} 29. Bd5 {[%clk 0:00:04.2]} 29... Rc8 {[%clk 0:00:13.7]} 30. Nc4
{[%clk 0:00:03]} 30... Rfd8 {[%clk 0:00:12.5]} 31. Be4 {[%clk 0:00:02.6]} 31...
Bg4 {[%clk 0:00:12.2]} 32. Rf2 {[%clk 0:00:02.2]} 32... Ng3 {[%clk 0:00:12.2]}
33. Rg2 {[%clk 0:00:02.4]} 33... Nxe4+ {[%clk 0:00:12.3]} 34. Rxe4 {[%clk
0:00:02.2]} 34... Bf3 {[%clk 0:00:12.9]} 35. Rge2 {[%clk 0:00:02.6]} 35... d3
{[%clk 0:00:12.1]} 36. R2e3 {[%clk 0:00:02.8]} 36... Bxe4 {[%clk 0:00:12.4]} 37.
Rxe4 {[%clk 0:00:03.7]} 37... Rc6 {[%clk 0:00:12.1]} 38. Ne5 {[%clk 0:00:03.7]}
38... Rc2+ {[%clk 0:00:11.6]} 39. Kd1 {[%clk 0:00:04.3]} 39... Rxa2 {[%clk
0:00:11.7]} 40. Nf7+ {[%clk 0:00:04.5]} 40... Kg7 {[%clk 0:00:11.7]} 41. Nxd8
{[%clk 0:00:05.4]} 41... Rb2 {[%clk 0:00:11.2]} 42. Ne6+ {[%clk 0:00:05.1]}
42... Kf7 {[%clk 0:00:10.9]} 43. Nc5 {[%clk 0:00:06]} 43... Rc2 {[%clk
0:00:10.5]} 44. Nxd3 {[%clk 0:00:05.2]} 44... Rc3 {[%clk 0:00:10.7]} 45. Kd2
{[%clk 0:00:05.3]} 45... Rxb3 {[%clk 0:00:10.9]} 46. Ra4 {[%clk 0:00:05.8]}
46... Rb7 {[%clk 0:00:10]} 47. Ke3 {[%clk 0:00:05.8]} 47... Ke6 {[%clk
0:00:09.8]} 48. Ke4 {[%clk 0:00:06.2]} 48... Kd6 {[%clk 0:00:08.5]} 49. Ra6+
{[%clk 0:00:06]} 49... Kc7 {[%clk 0:00:07.7]} 50. Nc5 {[%clk 0:00:05.7]} 50...
Rb4+ {[%clk 0:00:07.9]} 51. Ke5 {[%clk 0:00:06.2]} 51... Rxh4 {[%clk 0:00:08.1]}
52. Ne6+ {[%clk 0:00:06.4]} 52... Kb7 {[%clk 0:00:08.1]} 53. Rd6 {[%clk
0:00:06.7]} 53... Rg4 {[%clk 0:00:08.4]} 54. Kf6 {[%clk 0:00:06.7]} 54... a5
{[%clk 0:00:07.2]} 55. Kg7 {[%clk 0:00:06.3]} 55... a4 {[%clk 0:00:06.9]} 56.
Kxh7 {[%clk 0:00:06.9]} 56... a3 {[%clk 0:00:07.4]} 57. Kxg6 {[%clk 0:00:07.3]}
57... a2 {[%clk 0:00:07.7]} 58. Rd1 {[%clk 0:00:07.6]} 58... Rb4 {[%clk
0:00:06.9]} 59. Ra1 {[%clk 0:00:07.3]} 59... Ra4 {[%clk 0:00:07.3]} 60. Nc5+
{[%clk 0:00:07.4]} 60... Kc6 {[%clk 0:00:06.3]} 61. Nxa4 {[%clk 0:00:08.3]}
61... Kd5 {[%clk 0:00:06.4]} 62. Kf6 {[%clk 0:00:08.4]} 62... Kc4 {[%clk
0:00:06.3]} 63. g6 {[%clk 0:00:09.1]} 63... Kb3 {[%clk 0:00:07.2]} 64. g7 {[%clk
0:00:09.4]} 64... Kxa4 {[%clk 0:00:07.9]} 65. g8=Q {[%clk 0:00:09.8]} 65... Ka3
{[%clk 0:00:08.2]} 66. Qxa2+ {[%clk 0:00:09.8]} 1-0

[Event "Early-Titled-Tuesday-Blitz-April-23-2024"]
[Site "Chess.com"]
[Date "2024.04.23"]
[Round "4"]
[White "lluiss"]
[Black "AndresDelgado77"]
[Result "1-0"]
[WhiteElo "2143"]
[BlackElo "2310"]
[TimeControl "180+1"]
[EndTime "8:40:54 PDT"]
[Termination "lluiss won on time"]

1. e4 {[%clk 0:03:00.9]} 1... e6 {[%clk 0:02:56.9]} 2. d4 {[%clk 0:03:00]} 2...
d5 {[%clk 0:02:51.8]} 3. e5 {[%clk 0:03:00]} 3... c5 {[%clk 0:02:48.5]} 4. Nf3
{[%clk 0:02:59.8]} 4... Qb6 {[%clk 0:02:49.4]} 5. Bd3 {[%clk 0:02:55.5]} 5...
Bd7 {[%clk 0:02:46.1]} 6. dxc5 {[%clk 0:02:53.8]} 6... Bxc5 {[%clk 0:02:45.6]}
7. Qe2 {[%clk 0:02:54]} 7... Na6 {[%clk 0:02:41.7]} 8. c3 {[%clk 0:02:48.3]}
8... Nc7 {[%clk 0:02:40.3]} 9. b4 {[%clk 0:02:33.9]} 9... Be7 {[%clk 0:02:36.4]}
10. Be3 {[%clk 0:02:24.8]} 10... Qc6 {[%clk 0:02:29.3]} 11. Nd4 {[%clk
0:01:47.7]} 11... Qa4 {[%clk 0:02:25.5]} 12. O-O {[%clk 0:01:43.2]} 12... b5
{[%clk 0:01:52.7]} 13. Bc2 {[%clk 0:01:04.5]} 13... Qa6 {[%clk 0:01:44.3]} 14.
a4 {[%clk 0:01:02.9]} 14... bxa4 {[%clk 0:01:35]} 15. Qxa6 {[%clk 0:00:58.5]}
15... Nxa6 {[%clk 0:01:30.6]} 16. Bxa4 {[%clk 0:00:58.4]} 16... Bxa4 {[%clk
0:01:25.7]} 17. Rxa4 {[%clk 0:00:58.3]} 17... Nc7 {[%clk 0:01:24.8]} 18. Nd2
{[%clk 0:00:56.9]} 18... a6 {[%clk 0:01:18.3]} 19. Rfa1 {[%clk 0:00:55.5]} 19...
O-O-O {[%clk 0:01:12.9]} 20. Nc6 {[%clk 0:00:40.4]} 20... Rd7 {[%clk 0:00:55.1]}
21. Nb3 {[%clk 0:00:30]} 21... Nh6 {[%clk 0:00:43.1]} 22. Bxh6 {[%clk
0:00:25.7]} 22... gxh6 {[%clk 0:00:42.4]} 23. Nxe7+ {[%clk 0:00:25.5]} 23...
Rxe7 {[%clk 0:00:42]} 24. Nc5 {[%clk 0:00:25.9]} 24... f6 {[%clk 0:00:28.6]} 25.
exf6 {[%clk 0:00:24]} 25... Rf7 {[%clk 0:00:28.1]} 26. Nxa6 {[%clk 0:00:24]}
26... Rhf8 {[%clk 0:00:24.3]} 27. Nxc7 {[%clk 0:00:22.2]} 27... Kxc7 {[%clk
0:00:23]} 28. Ra7+ {[%clk 0:00:16.7]} 28... Kd6 {[%clk 0:00:23.3]} 29. Rxf7
{[%clk 0:00:16]} 29... Rxf7 {[%clk 0:00:23.2]} 30. Rb1 {[%clk 0:00:16.1]} 30...
Rxf6 {[%clk 0:00:21.9]} 31. Kf1 {[%clk 0:00:15.1]} 31... Kc6 {[%clk 0:00:20.6]}
32. b5+ {[%clk 0:00:13.9]} 32... Kb6 {[%clk 0:00:20.2]} 33. Ke2 {[%clk
0:00:13.4]} 33... Rf4 {[%clk 0:00:19.8]} 34. g3 {[%clk 0:00:11.4]} 34... Rc4
{[%clk 0:00:19.1]} 35. Kd3 {[%clk 0:00:11.3]} 35... e5 {[%clk 0:00:19.3]} 36. f3
{[%clk 0:00:10.1]} 36... h5 {[%clk 0:00:18.8]} 37. h4 {[%clk 0:00:06.7]} 37...
e4+ {[%clk 0:00:15.8]} 38. fxe4 {[%clk 0:00:06.4]} 38... Rxe4 {[%clk 0:00:16.2]}
39. Rf1 {[%clk 0:00:05]} 39... Rg4 {[%clk 0:00:15]} 40. Rf5 {[%clk 0:00:02.9]}
40... Rxg3+ {[%clk 0:00:14.8]} 41. Kd4 {[%clk 0:00:03.2]} 41... Rg4+ {[%clk
0:00:14.6]} 42. Kxd5 {[%clk 0:00:03.5]} 42... Kxb5 {[%clk 0:00:14.6]} 43. Rxh5
{[%clk 0:00:03.1]} 43... Rc4 {[%clk 0:00:04.6]} 44. Rxh7 {[%clk 0:00:02.7]}
44... Rxc3 {[%clk 0:00:03.5]} 45. Rb7+ {[%clk 0:00:02.6]} 45... Ka6 {[%clk
0:00:03]} 46. Rh7 {[%clk 0:00:02.4]} 46... Rh3 {[%clk 0:00:03.9]} 47. Ke5 {[%clk
0:00:02.6]} 47... Kb6 {[%clk 0:00:02.7]} 48. h5 {[%clk 0:00:02.9]} 48... Kc6
{[%clk 0:00:02.5]} 49. Ke6 {[%clk 0:00:03]} 49... Kc5 {[%clk 0:00:02]} 50. h6
{[%clk 0:00:02.5]} 50... Kd4 {[%clk 0:00:02]} 51. Kf5 {[%clk 0:00:02.7]} 51...
Kd5 {[%clk 0:00:02]} 52. Kf6 {[%clk 0:00:03]} 52... Ke4 {[%clk 0:00:02.2]} 53.
Re7+ {[%clk 0:00:02.8]} 53... Kf4 {[%clk 0:00:01.7]} 54. h7 {[%clk 0:00:03.7]}
54... Kg4 {[%clk 0:00:01.3]} 55. Kg7 {[%clk 0:00:04]} 1-0

[Event "Early-Titled-Tuesday-Blitz-April-23-2024"]
[Site "Chess.com"]
[Date "2024.04.23"]
[Round "4"]
[White "Silent-Killer100"]
[Black "K_A_S_T_O_R"]
[Result "0-1"]
[WhiteElo "2607"]
[BlackElo "2849"]
[TimeControl "180+1"]
[EndTime "8:40:58 PDT"]
[Termination "K_A_S_T_O_R won by resignation"]

1. e4 {[%clk 0:03:00.9]} 1... c5 {[%clk 0:02:48.2]} 2. Nf3 {[%clk 0:03:00.6]}
2... d6 {[%clk 0:02:48]} 3. d4 {[%clk 0:03:01.1]} 3... cxd4 {[%clk 0:02:47.8]}
4. Nxd4 {[%clk 0:03:02]} 4... Nf6 {[%clk 0:02:48.2]} 5. Nc3 {[%clk 0:03:02.3]}
5... a6 {[%clk 0:02:48.6]} 6. Be3 {[%clk 0:03:01]} 6... Nc6 {[%clk 0:02:44.4]}
7. f3 {[%clk 0:02:58.3]} 7... e6 {[%clk 0:02:44.3]} 8. Qd2 {[%clk 0:02:56.5]}
8... Be7 {[%clk 0:02:44.7]} 9. g4 {[%clk 0:02:55.2]} 9... O-O {[%clk 0:02:44.9]}
10. g5 {[%clk 0:02:54.7]} 10... Nd7 {[%clk 0:02:42.7]} 11. h4 {[%clk 0:02:55]}
11... Nxd4 {[%clk 0:02:42.7]} 12. Bxd4 {[%clk 0:02:55.9]} 12... b5 {[%clk
0:02:42.8]} 13. O-O-O {[%clk 0:02:53.2]} 13... b4 {[%clk 0:02:40.4]} 14. Ne2
{[%clk 0:02:51.3]} 14... Ne5 {[%clk 0:02:37.8]} 15. f4 {[%clk 0:02:47.5]} 15...
Nc6 {[%clk 0:02:30.5]} 16. h5 {[%clk 0:02:43.3]} 16... Nxd4 {[%clk 0:02:08.1]}
17. Nxd4 {[%clk 0:02:44.2]} 17... Bb7 {[%clk 0:02:01.9]} 18. Bd3 {[%clk
0:02:38.5]} 18... e5 {[%clk 0:01:51.4]} 19. Nf3 {[%clk 0:02:32.9]} 19... exf4
{[%clk 0:01:48.2]} 20. Qxf4 {[%clk 0:02:33.8]} 20... Qa5 {[%clk 0:01:44.3]} 21.
Bc4 {[%clk 0:02:27.4]} 21... Rac8 {[%clk 0:01:35]} 22. Bb3 {[%clk 0:02:26.9]}
22... Kh8 {[%clk 0:01:30.8]} 23. h6 {[%clk 0:02:25]} 23... g6 {[%clk 0:01:28.7]}
24. Rxd6 {[%clk 0:02:16]} 24... Qc5 {[%clk 0:01:08.6]} 25. Rd2 {[%clk
0:01:48.4]} 25... f6 {[%clk 0:01:04.6]} 26. Rhd1 {[%clk 0:01:38.2]} 26... fxg5
{[%clk 0:00:56.7]} 27. Qe5+ {[%clk 0:01:37.6]} 27... Bf6 {[%clk 0:00:56.5]} 28.
Qxc5 {[%clk 0:01:06.6]} 28... Rxc5 {[%clk 0:00:56.7]} 29. Rd6 {[%clk 0:01:07.1]}
29... Rcc8 {[%clk 0:00:52]} 30. Nd4 {[%clk 0:00:49.4]} 30... Bxe4 {[%clk
0:00:34]} 31. Ne6 {[%clk 0:00:33.1]} 31... Rfe8 {[%clk 0:00:32.7]} 32. Rxa6
{[%clk 0:00:29]} 32... Be5 {[%clk 0:00:31.2]} 33. Rd7 {[%clk 0:00:18.8]} 33...
Bf5 {[%clk 0:00:23.7]} 34. Rd1 {[%clk 0:00:10.8]} 34... Bxe6 {[%clk 0:00:20.5]}
35. Rxe6 {[%clk 0:00:11.7]} 35... Bf4+ {[%clk 0:00:20.3]} 36. Kb1 {[%clk
0:00:11.6]} 36... Rxe6 {[%clk 0:00:18.4]} 37. Bxe6 {[%clk 0:00:12.5]} 37... Rf8
{[%clk 0:00:18.9]} 38. a4 {[%clk 0:00:12.2]} 38... bxa3 {[%clk 0:00:18.5]} 39.
bxa3 {[%clk 0:00:13.1]} 39... Rb8+ {[%clk 0:00:18.7]} 40. Ka2 {[%clk 0:00:11.9]}
40... g4 {[%clk 0:00:19.3]} 41. Bxg4 {[%clk 0:00:11.8]} 41... Bxh6 {[%clk
0:00:19.6]} 42. a4 {[%clk 0:00:12.3]} 42... Ra8 {[%clk 0:00:18.5]} 43. Bd7
{[%clk 0:00:11.7]} 43... Bf8 {[%clk 0:00:18.6]} 44. Rd5 {[%clk 0:00:11.9]} 44...
Kg7 {[%clk 0:00:18.7]} 45. Bc6 {[%clk 0:00:12.3]} 45... Ra7 {[%clk 0:00:18.3]}
46. Kb3 {[%clk 0:00:10.9]} 46... h5 {[%clk 0:00:17.1]} 47. Rd7+ {[%clk
0:00:10.7]} 47... Rxd7 {[%clk 0:00:16.7]} 48. Bxd7 {[%clk 0:00:11.6]} 48... Bc5
{[%clk 0:00:17.2]} 49. a5 {[%clk 0:00:11.7]} 49... Ba7 {[%clk 0:00:17.7]} 50.
Kc4 {[%clk 0:00:11.7]} 50... g5 {[%clk 0:00:18.1]} 51. Kb5 {[%clk 0:00:12.2]}
51... g4 {[%clk 0:00:18.3]} 52. Ka6 {[%clk 0:00:12.7]} 52... Bd4 {[%clk
0:00:17.8]} 53. Kb7 {[%clk 0:00:12.5]} 53... Kf6 {[%clk 0:00:18.1]} 54. a6
{[%clk 0:00:12.7]} 54... Kg5 {[%clk 0:00:18.5]} 55. c3 {[%clk 0:00:13.1]} 55...
Be3 {[%clk 0:00:18.5]} 56. c4 {[%clk 0:00:13.4]} 56... h4 {[%clk 0:00:18.5]} 57.
Bc6 {[%clk 0:00:10.9]} 57... h3 {[%clk 0:00:17.8]} 58. Bd5 {[%clk 0:00:11.2]}
58... g3 {[%clk 0:00:17.9]} 59. a7 {[%clk 0:00:03.6]} 59... Bxa7 {[%clk
0:00:17.4]} 60. Kxa7 {[%clk 0:00:04.5]} 60... g2 {[%clk 0:00:17.9]} 61. Bxg2
{[%clk 0:00:05.1]} 61... hxg2 {[%clk 0:00:17.9]} 62. c5 {[%clk 0:00:06]} 62...
g1=Q {[%clk 0:00:18.5]} 63. Kb6 {[%clk 0:00:06.2]} 63... Kf6 {[%clk 0:00:19]}
64. Kc6 {[%clk 0:00:05.9]} 64... Ke7 {[%clk 0:00:19.3]} 0-1

[Event "Early-Titled-Tuesday-Blitz-April-23-2024"]
[Site "Chess.com"]
[Date "2024.04.23"]
[Round "4"]
[White "viviania"]
[Black "mishanick"]
[Result "0-1"]
[WhiteElo "2906"]
[BlackElo "3168"]
[TimeControl "180+1"]
[EndTime "8:41:00 PDT"]
[Termination "mishanick won on time"]

1. Nf3 {[%clk 0:02:59.3]} 1... d5 {[%clk 0:03:00.1]} 2. g3 {[%clk 0:02:59]} 2...
g6 {[%clk 0:03:00.6]} 3. Bg2 {[%clk 0:02:57.6]} 3... Bg7 {[%clk 0:03:01.3]} 4.
d4 {[%clk 0:02:58.1]} 4... c6 {[%clk 0:03:00.7]} 5. O-O {[%clk 0:02:57.6]} 5...
Nf6 {[%clk 0:03:01.4]} 6. b3 {[%clk 0:02:57.1]} 6... O-O {[%clk 0:03:01.4]} 7.
Bb2 {[%clk 0:02:56.8]} 7... Nbd7 {[%clk 0:03:01.3]} 8. c4 {[%clk 0:02:56.4]}
8... b5 {[%clk 0:03:01.9]} 9. Nbd2 {[%clk 0:02:36.5]} 9... bxc4 {[%clk
0:03:01.1]} 10. bxc4 {[%clk 0:02:36.4]} 10... Ba6 {[%clk 0:03:01.7]} 11. Qa4
{[%clk 0:02:33]} 11... Qc8 {[%clk 0:03:01.5]} 12. cxd5 {[%clk 0:02:19.6]} 12...
Nb6 {[%clk 0:02:56.9]} 13. Qxc6 {[%clk 0:01:41.8]} 13... Nfxd5 {[%clk
0:02:42.9]} 14. Rfc1 {[%clk 0:01:21]} 14... Bxe2 {[%clk 0:02:33.9]} 15. Ne5
{[%clk 0:01:20.5]} 15... Qxc6 {[%clk 0:02:26]} 16. Rxc6 {[%clk 0:01:14.9]} 16...
e6 {[%clk 0:02:20.8]} 17. a4 {[%clk 0:00:54.4]} 17... Rab8 {[%clk 0:02:14.4]}
18. a5 {[%clk 0:00:48.5]} 18... Na4 {[%clk 0:01:58.5]} 19. Ba3 {[%clk
0:00:48.4]} 19... Rfc8 {[%clk 0:01:49]} 20. Ne4 {[%clk 0:00:12.9]} 20... Rxc6
{[%clk 0:01:05.9]} 21. Nxc6 {[%clk 0:00:12.8]} 21... Rc8 {[%clk 0:01:06.7]} 22.
Rc1 {[%clk 0:00:13.1]} 22... a6 {[%clk 0:00:51.4]} 23. Nd6 {[%clk 0:00:13]}
23... Rc7 {[%clk 0:00:21.4]} 24. Bxd5 {[%clk 0:00:11.9]} 24... exd5 {[%clk
0:00:22.3]} 25. Ne7+ {[%clk 0:00:11.5]} 25... Rxe7 {[%clk 0:00:22.7]} 26. Rc8+
{[%clk 0:00:11.2]} 26... Bf8 {[%clk 0:00:23.4]} 27. Nf5 {[%clk 0:00:07.2]} 27...
Bg4 {[%clk 0:00:11.6]} 28. Nxe7+ {[%clk 0:00:05.9]} 28... Kg7 {[%clk 0:00:11.7]}
29. Nf5+ {[%clk 0:00:05.7]} 29... Bxf5 {[%clk 0:00:11.7]} 30. Bxf8+ {[%clk
0:00:05.3]} 30... Kg8 {[%clk 0:00:07.6]} 31. Rb8 {[%clk 0:00:04.2]} 31... f6
{[%clk 0:00:06.8]} 32. Bb4+ {[%clk 0:00:03.6]} 32... Kf7 {[%clk 0:00:07.3]} 33.
Ra8 {[%clk 0:00:03.5]} 33... Bd3 {[%clk 0:00:06.4]} 34. Ra7+ {[%clk 0:00:03.5]}
34... Kg8 {[%clk 0:00:05.9]} 35. Rd7 {[%clk 0:00:02.9]} 35... Bc4 {[%clk
0:00:05.9]} 36. f3 {[%clk 0:00:03.2]} 36... Nb2 {[%clk 0:00:06]} 37. Bc5 {[%clk
0:00:02.4]} 37... Nd3 {[%clk 0:00:03.3]} 38. Bb6 {[%clk 0:00:02.2]} 38... Ne1
{[%clk 0:00:03.2]} 39. Rd8+ {[%clk 0:00:01.9]} 39... Kf7 {[%clk 0:00:03.3]} 40.
Kf2 {[%clk 0:00:02.3]} 40... Nc2 {[%clk 0:00:02]} 41. Rd7+ {[%clk 0:00:01.5]}
41... Kg8 {[%clk 0:00:02.4]} 42. Rd8+ {[%clk 0:00:01.8]} 42... Kf7 {[%clk
0:00:02.4]} 43. Rd7+ {[%clk 0:00:02.1]} 43... Kg8 {[%clk 0:00:03.2]} 44. Rb7
{[%clk 0:00:01.9]} 44... h5 {[%clk 0:00:03.4]} 45. h4 {[%clk 0:00:02.1]} 45...
Nb4 {[%clk 0:00:03.4]} 46. g4 {[%clk 0:00:02.2]} 46... Nd3+ {[%clk 0:00:02.6]}
47. Kg3 {[%clk 0:00:01.7]} 47... Nc1 {[%clk 0:00:01.7]} 48. gxh5 {[%clk
0:00:01.9]} 48... gxh5 {[%clk 0:00:02.6]} 49. Kf4 {[%clk 0:00:01.9]} 49... Bd3
{[%clk 0:00:03.3]} 50. Ke3 {[%clk 0:00:02.1]} 50... Bc4 {[%clk 0:00:02.7]} 51.
Rc7 {[%clk 0:00:02]} 51... Nd3 {[%clk 0:00:02.7]} 52. Bc5 {[%clk 0:00:01.9]}
52... Nc1 {[%clk 0:00:01.6]} 53. Bd6 {[%clk 0:00:02]} 53... Nb3 {[%clk
0:00:02.1]} 54. Bf4 {[%clk 0:00:01.6]} 54... Nxa5 {[%clk 0:00:02.4]} 55. Kd2
{[%clk 0:00:01.8]} 55... Nb3+ {[%clk 0:00:02.7]} 56. Kc3 {[%clk 0:00:02]} 56...
a5 {[%clk 0:00:02.5]} 57. Ra7 {[%clk 0:00:01.1]} 57... Kf8 {[%clk 0:00:02.6]}
58. Bh6+ {[%clk 0:00:01.2]} 58... Ke8 {[%clk 0:00:03]} 59. Bg7 {[%clk
0:00:01.5]} 59... f5 {[%clk 0:00:02.4]} 60. Bf6 {[%clk 0:00:01.6]} 60... Nc1
{[%clk 0:00:03.1]} 61. Rxa5 {[%clk 0:00:01]} 61... Kf7 {[%clk 0:00:03.5]} 0-1